fUSD/lending_fUSD_20240814
["ID","MTS","AMOUNT","RATE_DAILY","PERIOD"]
[334873919,1723621852568,-500.0,0.00014246,2]
[334873920,1723621852579,-500.0,0.00014246,2]
[334873921,1723621852589,-500.0,0.00014246,2]
[334873922,1723621852598,-500.0,0.00014246,2]
[334873923,1723621852608,-500.0,0.00014246,2]
[334873924,1723621852618,-500.0,0.00014246,2]
[334873925,1723621852628,-500.0,0.00014246,2]
[334873926,1723621852637,-500.0,0.00014246,2]
[334873927,1723621852647,-500.0,0.00014246,2]
[334873928,1723621852657,-500.0,0.00014246,2]
[334873929,1723621852668,-500.0,0.00014246,2]
[334873930,1723621852887,-500.0,0.00014246,2]
[334873931,1723621852897,-500.0,0.00014246,2]
[334873932,1723621852907,-500.0,0.00014246,2]
[334873933,1723621852916,-500.0,0.00014246,2]
[334873934,1723621852926,-976.03,0.00014246,2]
[334873935,1723621852934,-500.0,0.00014246,2]
[334873936,1723621852943,-500.0,0.00014246,2]
[334873937,1723621852952,-500.0,0.00014246,2]
[334873938,1723621852962,-500.0,0.00014246,2]
[334873939,1723621852972,-500.0,0.00014246,2]
[334873940,1723621852981,-500.0,0.00014246,2]
[334873941,1723621852991,-500.0,0.00014246,2]
[334873942,1723621853000,-500.0,0.00014246,2]
[334873943,1723621853009,-647.36,0.00014246,2]
[334873944,1723621853019,-500.0,0.00014246,2]
[334873945,1723621853028,-182.84883493,0.00014246,2]
[334873946,1723621853038,-500.0,0.00014246,2]
[334873947,1723621853047,-500.0,0.00014246,2]
[334873948,1723621853056,-500.0,0.00014246,2]
[334873949,1723621853066,-500.0,0.00014246,2]
[334873950,1723621853076,-500.0,0.00014246,2]
[334873951,1723621853086,-500.0,0.00014246,2]
[334873952,1723621853096,-500.0,0.00014246,2]
[334873953,1723621853105,-500.0,0.00014246,2]
[334873954,1723621853114,-576.1,0.00014246,2]
[334873955,1723621853124,-500.0,0.00014246,2]
[334873956,1723621853133,-500.0,0.00014246,2]
[334873957,1723621853142,-500.0,0.00014246,2]
[334873958,1723621853151,-500.0,0.00014246,2]
[334873959,1723621853162,-500.0,0.00014246,2]
[334873960,1723621853171,-500.0,0.00014246,2]
[334873961,1723621853180,-500.0,0.00014246,2]
[334873962,1723621853189,-613.70145768,0.00014246,2]
[334873963,1723621853199,-500.0,0.00014246,2]
[334873964,1723621853209,-808.89,0.00014246,2]
[334873965,1723621853218,-500.0,0.00014246,2]
[334873966,1723621853227,-500.0,0.00014246,2]
[334873967,1723621853236,-500.0,0.00014246,2]
[334873968,1723621853246,-377.77379329,0.00014246,2]
[334873969,1723621853255,-500.0,0.00014246,2]
[334873970,1723621853264,-500.0,0.00014246,2]
[334873971,1723621853274,-500.0,0.00014246,2]
[334873972,1723621853283,-500.0,0.00014246,2]
[334873973,1723621853292,-500.0,0.00014246,2]
[334873974,1723621853302,-2103.58303326,0.00014246,2]
[334873975,1723621853315,-108.56696674,0.00014246,2]
[334873976,1723621853325,-2596.71,0.00014246,2]
[334873977,1723621853334,-500.0,0.00014246,2]
[334873978,1723621853343,-500.0,0.00014246,2]
[334873979,1723621853352,-500.0,0.00014246,2]
[334873980,1723621853361,-500.0,0.00014246,2]
[334873981,1723621853370,-2830.5,0.00014246,2]
[334873982,1723621853379,-500.0,0.00014246,2]
[334873983,1723621853389,-500.0,0.00014246,2]
[334873984,1723621853398,-1008.39,0.00014246,2]
[334873985,1723621853408,-550.91,0.00014246,2]
[334873986,1723621853417,-500.0,0.00014246,2]
[334873987,1723621853427,-500.0,0.00014246,2]
[334873988,1723621853438,-442.50165778,0.00014246,2]
[334873989,1723621853462,-57.49834222,0.00014246,2]
[334873990,1723621853472,-500.0,0.00014246,2]
[334873991,1723621853483,-500.0,0.00014246,2]
[334873992,1723621853492,-3139.26,0.00014246,2]
[334873993,1723621853501,-500.0,0.00014246,2]
[334873994,1723621853510,-526.97,0.00014246,2]
[334873995,1723621853519,-918.5,0.00014246,2]
[334873996,1723621853528,-500.0,0.00014246,2]
[334873997,1723621853538,-2509.34,0.00014246,2]
[334873998,1723621853547,-500.0,0.00014246,2]
[334873999,1723621853556,-5.52793147,0.00014246,2]
[334874011,1723623032349,-155.0,9.999e-05,2]
[334874012,1723623032358,-704.7,0.00010607,2]
[334874013,1723623032367,-22.315,0.00011,2]
[334874014,1723623032378,-133.50503714,0.00011,2]
[334874015,1723623032388,-709.3048,0.00011121,2]
[334874016,1723623032397,-373.944,0.00011221,2]
[334874017,1723623032406,-1297.98969561,0.00011779,2]
[334874018,1723623032415,-500.0,0.0001178,2]
[334874019,1723623032424,-500.0,0.0001178,2]
[334874020,1723623032433,-266.05,0.00012331,2]
[334874021,1723623032443,-175.47,0.00012368,2]
[334874022,1723623032452,-178.83,0.00012497,2]
[334874023,1723623032464,-250.0,0.00012571,2]
[334874024,1723623032473,-300.0,0.00012677,2]
[334874025,1723623032482,-8074.9949599,0.00012678,2]
[334874026,1723623032516,-3214.8950401,0.00012678,2]
[334874027,1723623032527,-250.0,0.00012697,2]
[334874028,1723623032537,-499.99,0.00012775,2]
[334874029,1723623032547,-453.93284773,0.00012866,2]
[334874030,1723623032556,-1000.0,0.00012867,2]
[334874031,1723623032566,-704.7,0.00012871,2]
[334874032,1723623032575,-500.0,0.00012876,2]
[334874033,1723623032585,-500.0,0.00012876,2]
[334874034,1723623032596,-126.7092558,0.00012876,2]
[334874039,1723623038453,-373.2907442,0.00012876,2]
[334874041,1723623038463,-167.43,0.0001291,2]
[334874043,1723623038473,-500.0,0.00013424,2]
[334874046,1723623038482,-500.0,0.00013424,2]
[334874047,1723623038492,-150.0,0.00013506,2]
[334874048,1723623038502,-597.92,0.00013507,2]
[334874049,1723623038511,-425.77,0.00013507,2]
[334874050,1723623038521,-426.45,0.00013507,2]
[334874051,1723623038531,-309.63724217,0.00013507,2]
[334874052,1723623038542,-46.94275783,0.00013507,2]
[334874053,1723623038552,-426.45,0.00013507,2]
[334874054,1723623038562,-426.45,0.00013507,2]
[334874055,1723623038571,-531.07,0.00013507,2]
[334874056,1723623038581,-356.58,0.00013507,2]
[334874057,1723623038590,-531.07,0.00013507,2]
[334874058,1723623038600,-531.07,0.00013507,2]
[334874059,1723623038612,-313.6590203,0.00013507,2]
[334874060,1723623038628,-112.7909797,0.00013507,2]
[334874061,1723623038637,-356.58,0.00013507,2]
[334874062,1723623038647,-325.342,0.00013598,2]
[334874063,1723623038657,-163.50328266,0.00013598,2]
[334874064,1723623038669,-3571.39731734,0.00013598,2]
[334874065,1723623038679,-4807.6557,0.00013598,2]
[334874066,1723623038689,-1730.1456,0.00013598,2]
[334874067,1723623038699,-1080.8336,0.00013619,2]
[334874068,1723623038708,-440.73569758,0.00013661,7]
[334874069,1723623038718,-1000.0,0.00013672,2]
[334874070,1723623038728,-426.45,0.00013678,2]
[334874071,1723623038737,-500.0,0.00013698,2]
[334874072,1723623038748,-500.0,0.00013698,2]
[334874073,1723623038758,-500.0,0.00013698,2]
[334874074,1723623038768,-500.0,0.00013698,2]
[334874075,1723623038778,-500.0,0.00013698,2]
[334874076,1723623038787,-500.0,0.00013698,2]
[334874077,1723623038797,-500.0,0.00013698,2]
[334874078,1723623038807,-500.0,0.00013698,2]
[334874079,1723623038817,-500.0,0.00013698,2]
[334874080,1723623038827,-500.0,0.00013698,2]
[334874081,1723623038837,-500.0,0.00013698,2]
[334874082,1723623038847,-500.0,0.00013698,2]
[334874083,1723623038857,-627.55,0.00013698,2]
[334874084,1723623038867,-392.01613003,0.00013698,2]
[334874085,1723623038876,-500.0,0.00013698,2]
[334874086,1723623038886,-500.0,0.00013698,2]
[334874088,1723623038896,-886.09,0.00013698,2]
[334874090,1723623038906,-500.0,0.00013698,2]
[334874092,1723623038915,-500.0,0.00013698,2]
[334874094,1723623038925,-500.0,0.00013698,2]
[334874096,1723623038935,-500.0,0.00013698,2]
[334874098,1723623038945,-500.0,0.00013698,2]
[334874100,1723623038955,-500.0,0.00013698,2]
[334874102,1723623038965,-500.0,0.00013698,2]
[334874104,1723623038975,-500.0,0.00013698,2]
[334874106,1723623038986,-500.0,0.00013698,2]
[334874108,1723623038995,-500.0,0.00013698,2]
[334874110,1723623039006,-500.0,0.00013698,2]
[334874112,1723623039016,-193.33334896,0.00013698,2]
[334874114,1723623039026,-500.0,0.00013698,2]
[334874116,1723623039036,-500.0,0.00013698,2]
[334874118,1723623039046,-500.0,0.00013698,2]
[334874120,1723623039056,-500.0,0.00013698,2]
[334874122,1723623039066,-504.09,0.00013698,2]
[334874124,1723623039076,-500.0,0.00013698,2]
[334874126,1723623039085,-500.0,0.00013698,2]
[334874128,1723623039096,-500.0,0.00013698,2]
[334874130,1723623039106,-500.0,0.00013698,2]
[334874132,1723623039116,-500.0,0.00013698,2]
[334874134,1723623039127,-500.0,0.00013698,2]
[334874136,1723623039138,-500.0,0.00013698,2]
[334874138,1723623039149,-500.0,0.00013698,2]
[334874140,1723623039159,-500.0,0.00013698,2]
[334874142,1723623039170,-500.0,0.00013698,2]
[334874144,1723623039180,-500.0,0.00013698,2]
[334874146,1723623039191,-422.21,0.00013698,2]
[334874148,1723623039201,-500.0,0.00013698,2]
[334874150,1723623039212,-500.0,0.00013698,2]
[334874151,1723623039221,-500.0,0.00013698,2]
[334874153,1723623039231,-500.0,0.00013698,2]
[334874155,1723623039244,-500.0,0.00013698,2]
[334874156,1723623039254,-534.72,0.00013698,2]
[334874157,1723623039264,-500.0,0.00013698,2]
[334874158,1723623039274,-500.0,0.00013698,2]
[334874159,1723623039284,-500.0,0.00013698,2]
[334874160,1723623039294,-533.62,0.00013698,2]
[334874161,1723623039304,-500.0,0.00013698,2]
[334874162,1723623039313,-371.08311579,0.00013698,2]
[334874163,1723623039324,-389.55897348,0.00013698,2]
[334874164,1723623039338,-110.44102652,0.00013698,2]
[334874165,1723623039348,-500.0,0.00013698,2]
[334874166,1723623039358,-500.0,0.00013698,2]
[334874167,1723623039368,-500.0,0.00013698,2]
[334874168,1723623039379,-500.0,0.00013698,2]
[334874169,1723623039388,-500.0,0.00013698,2]
[334874170,1723623039398,-500.0,0.00013698,2]
[334874171,1723623039408,-500.0,0.00013698,2]
[334874173,1723623039418,-500.0,0.00013698,2]
[334874174,1723623039428,-500.0,0.00013698,2]
[334874176,1723623039438,-500.0,0.00013698,2]
[334874178,1723623039448,-500.0,0.00013698,2]
[334874180,1723623039458,-500.0,0.00013698,2]
[334874182,1723623039468,-500.0,0.00013698,2]
[334874184,1723623039478,-500.0,0.00013698,2]
[334874185,1723623039488,-500.0,0.00013698,2]
[334874187,1723623039498,-500.0,0.00013698,2]
[334874212,1723623039765,-500.0,0.00013698,2]
[334874214,1723623039775,-500.0,0.00013698,2]
[334874216,1723623039785,-500.0,0.00013698,2]
[334874218,1723623039795,-292.1101693,0.00013698,2]
[334874220,1723623039806,-207.8898307,0.00013698,2]
[334874222,1723623039816,-500.0,0.00013698,2]
[334874224,1723623039825,-500.0,0.00013698,2]
[334874226,1723623039835,-500.0,0.00013698,2]
[334874228,1723623039845,-500.0,0.00013698,2]
[334874229,1723623039855,-500.0,0.00013698,2]
[334874231,1723623039866,-500.0,0.00013698,2]
[334874233,1723623039875,-500.0,0.00013698,2]
[334874235,1723623039884,-500.0,0.00013698,2]
[334874237,1723623039894,-500.0,0.00013698,2]
[334874239,1723623039903,-617.6,0.00013698,2]
[334874241,1723623039913,-500.0,0.00013698,2]
[334874243,1723623039923,-500.0,0.00013698,2]
[334874245,1723623039933,-500.0,0.00013698,2]
[334874247,1723623039942,-500.0,0.00013698,2]
[334874249,1723623039952,-500.0,0.00013698,2]
[334874251,1723623039961,-500.0,0.00013698,2]
[334874252,1723623039970,-500.0,0.00013698,2]
[334874254,1723623039980,-500.0,0.00013698,2]
[334874256,1723623039989,-500.0,0.00013698,2]
[334874258,1723623039998,-500.0,0.00013698,2]
[334874260,1723623040009,-500.0,0.00013698,2]
[334874262,1723623040018,-500.0,0.00013698,2]
[334874264,1723623040028,-500.0,0.00013698,2]
[334874265,1723623040037,-500.0,0.00013698,2]
[334874267,1723623040047,-500.0,0.00013698,2]
[334874269,1723623040056,-500.0,0.00013698,2]
[334874272,1723623040066,-500.0,0.00013698,2]
[334874274,1723623040075,-500.0,0.00013698,2]
[334874276,1723623040085,-500.0,0.00013698,2]
[334874278,1723623040094,-500.0,0.00013698,2]
[334874280,1723623040103,-500.0,0.00013698,2]
[334874282,1723623040112,-500.0,0.00013698,2]
[334874285,1723623040122,-500.0,0.00013698,2]
[334874287,1723623040131,-500.0,0.00013698,2]
[334874289,1723623040141,-500.0,0.00013698,2]
[334874291,1723623040151,-500.0,0.00013698,2]
[334874292,1723623040160,-962.85,0.00013698,2]
[334874294,1723623040169,-500.0,0.00013698,2]
[334874296,1723623040179,-500.0,0.00013698,2]
[334874298,1723623040188,-500.0,0.00013698,2]
[334874300,1723623040198,-500.0,0.00013698,2]
[334874302,1723623040208,-500.0,0.00013698,2]
[334874304,1723623040217,-500.0,0.00013698,2]
[334874306,1723623040227,-500.0,0.00013698,2]
[334874308,1723623040238,-540.42,0.00013698,2]
[334874310,1723623040251,-500.0,0.00013698,2]
[334874311,1723623040261,-500.0,0.00013698,2]
[334874313,1723623040271,-485.4262472,0.00013698,2]
[334874316,1723623040280,-500.0,0.00013698,2]
[334874318,1723623040291,-500.0,0.00013698,2]
[334874321,1723623040300,-500.0,0.00013698,2]
[334874323,1723623040310,-344.51413009,0.00013698,2]
[334874325,1723623040322,-547.34,0.00013698,2]
[334874327,1723623040333,-500.0,0.00013698,2]
[334874329,1723623040343,-500.0,0.00013698,2]
[334874331,1723623040353,-1903.94307154,0.00013761,2]
[334874333,1723623040362,-617.2331,0.00013762,2]
[334874335,1723623040371,-6269.94950892,0.00013771,2]
[334874337,1723623040383,-966.78671617,0.00013771,2]
[334874339,1723623040394,-263.26377491,0.00013771,2]
[334874341,1723623040404,-186.79076404,0.00013771,2]
[334874343,1723623040413,-317.61944198,0.00013772,2]
[334874345,1723623040422,-15685.93374703,0.00013772,2]
[334874347,1723623040434,-11421.28655297,0.00013772,2]
[334874349,1723623040443,-22376.0922054,0.00013861,2]
[334874351,1723623040452,-29834.7896072,0.00013862,2]
[334874353,1723623040461,-580.52,0.00013869,2]
[334874355,1723623040470,-500.0,0.0001387,2]
[334874356,1723623040479,-2476.68,0.0001387,2]
[334874358,1723623040489,-2746.85,0.0001387,2]
[334874360,1723623040498,-500.0,0.0001387,2]
[334874362,1723623040507,-1738.23,0.0001387,2]
[334874363,1723623040516,-23941.29,0.0001387,2]
[334874365,1723623040526,-1028.79,0.0001387,2]
[334874367,1723623040535,-576.39,0.0001387,2]
[334874369,1723623040545,-179.280187,0.0001387,2]
[334874371,1723623040554,-154.515367,0.0001387,2]
[334874373,1723623040564,-1362.24,0.0001387,2]
[334874374,1723623040573,-666.12,0.0001387,2]
[334874376,1723623040583,-500.0,0.0001387,2]
[334874378,1723623040593,-672.39,0.0001387,2]
[334874380,1723623040603,-2213.35,0.0001387,2]
[334874382,1723623040612,-500.0,0.0001387,2]
[334874384,1723623040622,-829.14,0.0001387,2]
[334874386,1723623040631,-551.54,0.0001387,2]
[334874388,1723623040641,-792.41,0.0001387,2]
[334874389,1723623040651,-538.03,0.0001387,2]
[334874391,1723623040660,-765.22,0.0001387,2]
[334874393,1723623040670,-706.99,0.0001387,2]
[334874395,1723623040679,-500.0,0.0001387,2]
[334874397,1723623040689,-500.0,0.0001387,2]
[334874399,1723623040699,-500.0,0.0001387,2]
[334874400,1723623040709,-1209.62,0.0001387,2]
[334874402,1723623040719,-1313.54,0.0001387,2]
[334874404,1723623040728,-587.09,0.0001387,2]
[334874406,1723623040739,-707.82,0.0001387,2]
[334874408,1723623040748,-684.13,0.0001387,2]
[334874410,1723623040758,-712.46,0.0001387,2]
[334874412,1723623040768,-714.27,0.0001387,2]
[334874414,1723623040777,-500.0,0.0001387,2]
[334874416,1723623040787,-1175.68,0.0001387,2]
[334874418,1723623040796,-2505.25,0.0001387,2]
[334874420,1723623040805,-500.0,0.0001387,2]
[334874421,1723623040815,-814.24,0.0001387,2]
[334874424,1723623040825,-1082.07,0.0001387,2]
[334874425,1723623040835,-500.0,0.0001387,2]
[334874427,1723623040845,-670.78,0.0001387,2]
[334874429,1723623040856,-510.05,0.0001387,2]
[334874431,1723623040865,-529.54,0.0001387,2]
[334874433,1723623040875,-1207.99,0.0001387,2]
[334874434,1723623040885,-568.3,0.0001387,2]
[334874436,1723623040895,-766.03,0.0001387,2]
[334874438,1723623040904,-500.0,0.0001387,2]
[334874439,1723623040913,-2065.98,0.0001387,2]
[334874441,1723623040923,-775.51,0.0001387,2]
[334874442,1723623040931,-500.0,0.0001387,2]
[334874444,1723623040941,-1790.29,0.0001387,2]
[334874446,1723623040950,-717.84,0.0001387,2]
[334874448,1723623040959,-304.09215251,0.0001387,2]
[334874449,1723623040968,-845.79,0.0001387,2]
[334874451,1723623040978,-8189.44,0.0001387,2]
[334874453,1723623040987,-500.0,0.0001387,2]
[334874454,1723623040996,-1275.32,0.0001387,2]
[334874456,1723623041006,-1014.3,0.0001387,2]
[334874458,1723623041015,-2448.69,0.0001387,2]
[334874460,1723623041025,-500.0,0.0001387,2]
[334874461,1723623041034,-500.0,0.0001387,2]
[334874463,1723623041044,-500.0,0.00013871,2]
[334874465,1723623041053,-500.0,0.00013871,2]
[334874466,1723623041062,-500.0,0.00013871,2]
[334874468,1723623041071,-932.3,0.00013871,2]
[334874470,1723623041081,-500.0,0.00013871,2]
[334874472,1723623041090,-500.0,0.00013871,2]
[334874473,1723623041100,-168.62325279,0.00013871,2]
[334874475,1723623041110,-500.0,0.00013871,2]
[334874477,1723623041119,-500.0,0.00013871,2]
[334874479,1723623041129,-500.0,0.00013871,2]
[334874480,1723623041139,-707.78,0.00013871,2]
[334874482,1723623041149,-500.0,0.00013871,2]
[334874484,1723623041159,-263.2,0.00013871,2]
[334874486,1723623041168,-500.0,0.00013871,2]
[334874487,1723623041178,-500.0,0.00013871,2]
[334874489,1723623041188,-500.0,0.00013871,2]
[334874491,1723623041198,-500.0,0.00013871,2]
[334874492,1723623041208,-500.0,0.00013871,2]
[334874494,1723623041218,-500.0,0.00013871,2]
[334874496,1723623041228,-445.11289409,0.00013871,2]
[334874498,1723623041239,-500.0,0.00013871,2]
[334874499,1723623041253,-500.0,0.00013871,2]
[334874500,1723623041263,-160.38102669,0.00013871,2]
[334874501,1723623041273,-500.0,0.00013871,2]
[334874502,1723623041283,-500.0,0.00013871,2]
[334874503,1723623041293,-1672.35,0.00013871,2]
[334874504,1723623041303,-500.0,0.00013871,2]
[334874505,1723623041312,-521.01,0.00013871,2]
[334874506,1723623041322,-500.0,0.00013871,2]
[334874507,1723623041332,-500.0,0.00013871,2]
[334874508,1723623041343,-500.0,0.00013871,2]
[334874509,1723623041354,-500.0,0.00013871,2]
[334874510,1723623041365,-236.46,0.00013871,2]
[334874511,1723623041374,-500.0,0.00013871,2]
[334874512,1723623041384,-500.0,0.00013871,2]
[334874513,1723623041395,-695.33,0.00013871,2]
[334874514,1723623041404,-500.0,0.00013871,2]
[334874515,1723623041414,-500.0,0.00013871,2]
[334874516,1723623041423,-500.0,0.00013871,2]
[334874517,1723623041433,-578.53,0.00013871,2]
[334874518,1723623041443,-500.0,0.00013871,2]
[334874519,1723623041452,-520.59,0.00013871,2]
[334874521,1723623041462,-219.09631742,0.00013871,2]
[334874523,1723623041471,-500.0,0.00013871,2]
[334874524,1723623041480,-500.0,0.00013871,2]
[334874526,1723623041490,-500.0,0.00013871,2]
[334874528,1723623041499,-500.0,0.00013871,2]
[334874529,1723623041508,-500.0,0.00013871,2]
[334874531,1723623041517,-500.0,0.00013871,2]
[334874533,1723623041526,-500.0,0.00013871,2]
[334874534,1723623041535,-500.0,0.00013871,2]
[334874536,1723623041545,-500.0,0.00013871,2]
[334874538,1723623041554,-500.0,0.00013871,2]
[334874539,1723623041563,-189.05891735,0.00013871,2]
[334874541,1723623041576,-310.94108265,0.00013871,2]
[334874543,1723623041585,-598.24,0.00013871,2]
[334874544,1723623041594,-334.86671735,0.00013871,2]
[334874547,1723623041610,-165.13328265,0.00013871,2]
[334874549,1723623041619,-500.0,0.00013871,2]
[334874550,1723623041633,-500.0,0.00013871,2]
[334874552,1723623041643,-447.79498461,0.00013871,2]
[334874558,1723623041710,-52.20501539,0.00013871,2]
[334874560,1723623041720,-500.0,0.00013871,2]
[334874562,1723623041730,-500.0,0.00013871,2]
[334874564,1723623041739,-500.0,0.00013871,2]
[334874565,1723623041748,-251.32363545,0.00013871,2]
[334874567,1723623041760,-248.67636455,0.00013871,2]
[334874569,1723623041769,-321.5604927,0.00013871,2]
[334874571,1723623041784,-137.66401658,0.00013871,2]
[334874573,1723623041794,-542.81,0.00013871,2]
[334874574,1723623041803,-99.66287396,0.00013871,2]
[334874580,1723623041859,-400.33712604,0.00013871,2]
[334874581,1723623041869,-500.0,0.00013871,2]
[334874583,1723623041878,-500.0,0.00013871,2]
[334874585,1723623041888,-500.0,0.00013871,2]
[334874587,1723623041899,-867.04,0.00013871,2]
[334874588,1723623041908,-500.0,0.00013871,2]
[334874590,1723623041917,-500.0,0.00013871,2]
[334874592,1723623041927,-500.0,0.00013871,2]
[334874594,1723623041936,-854.03,0.00013871,2]
[334874595,1723623041946,-500.0,0.00013871,2]
[334874597,1723623041956,-411.14917828,0.00013871,2]
[334874676,1723623043096,-88.85082172,0.00013871,2]
[334874678,1723623043108,-500.0,0.00013871,2]
[334874680,1723623043118,-720.06,0.00013871,2]
[334874682,1723623043128,-500.0,0.00013871,2]
[334874684,1723623043138,-500.0,0.00013871,2]
[334874686,1723623043147,-566.44,0.00013871,2]
[334874688,1723623043157,-178.84316149,0.00013871,2]
[334874692,1723623043187,-321.15683851,0.00013871,2]
[334874694,1723623043197,-58.78540739,0.00013871,2]
[334874701,1723623043256,-321.1735456,0.00013871,2]
[334874715,1723623043350,-120.04104701,0.00013871,2]
[334874718,1723623043360,-500.0,0.00013871,2]
[334874721,1723623043369,-500.0,0.00013871,2]
[334874724,1723623043379,-500.0,0.00013871,2]
[334874726,1723623043388,-500.0,0.00013871,2]
[334874729,1723623043398,-500.0,0.00013871,2]
[334874732,1723623043408,-500.0,0.00013871,2]
[334874736,1723623043417,-514.34,0.00013871,2]
[334874740,1723623043427,-500.0,0.00013871,2]
[334874744,1723623043437,-500.0,0.00013871,2]
[334874748,1723623043446,-500.0,0.00013871,2]
[334874752,1723623043456,-500.0,0.00013871,2]
[334874756,1723623043467,-586.07207589,0.00013871,2]
[334874760,1723623043477,-635.65,0.00013871,2]
[334874764,1723623043486,-604.8,0.00013871,2]
[334874767,1723623043496,-681.41,0.00013871,2]
[334874770,1723623043506,-500.0,0.00013871,2]
[334874773,1723623043515,-500.0,0.00013871,2]
[334874777,1723623043525,-500.0,0.00013871,2]
[334874780,1723623043534,-1017.69,0.00013871,2]
[334874784,1723623043543,-500.0,0.00013871,2]
[334874788,1723623043553,-500.0,0.00013871,2]
[334874792,1723623043561,-500.0,0.00013871,2]
[334874796,1723623043570,-1593.99,0.00013871,2]
[334874800,1723623043579,-500.0,0.00013871,2]
[334874804,1723623043588,-500.0,0.00013871,2]
[334874808,1723623043599,-500.0,0.00013871,2]
[334874812,1723623043607,-2272.12,0.00013871,2]
[334874817,1723623043623,-500.0,0.00013871,2]
[334874821,1723623043632,-500.0,0.00013871,2]
[334874824,1723623043641,-500.0,0.00013871,2]
[334874829,1723623043651,-803.69,0.00013871,2]
[334874832,1723623043660,-882.34,0.00013871,2]
[334874835,1723623043669,-518.43,0.00013871,2]
[334874838,1723623043678,-634.84,0.00013871,2]
[334874840,1723623043688,-2702.23,0.00013871,2]
[334874842,1723623043697,-339.10054617,0.00013871,2]
[334874844,1723623043706,-672.98,0.00013871,2]
[334874846,1723623043716,-2850.65,0.00013871,2]
[334874848,1723623043725,-500.0,0.00013871,2]
[334874850,1723623043735,-500.0,0.00013871,2]
[334874852,1723623043744,-500.0,0.00013871,2]
[334874854,1723623043753,-500.0,0.00013871,2]
[334874855,1723623043762,-1463.41,0.00013871,2]
[334874857,1723623043771,-792.53,0.00013871,2]
[334874859,1723623043780,-500.0,0.00013871,2]
[334874861,1723623043789,-500.0,0.00013871,2]
[334874863,1723623043798,-500.0,0.00013871,2]
[334874865,1723623043808,-500.0,0.00013871,2]
[334874866,1723623043817,-699.96,0.00013871,2]
[334874868,1723623043826,-500.0,0.00013871,2]
[334874870,1723623043835,-3274.11,0.00013871,2]
[334874872,1723623043844,-121.83224645,0.00013871,2]
[334874874,1723623043857,-378.16775355,0.00013871,2]
[334874876,1723623043867,-298.06224645,0.00013871,2]
[334874878,1723623043878,-201.93775355,0.00013871,2]
[334874880,1723623043888,-500.0,0.00013871,2]
[334874882,1723623043897,-500.0,0.00013871,2]
[334874884,1723623043907,-500.0,0.00013871,2]
[334874886,1723623043916,-1362.37,0.00013871,2]
[334874888,1723623043925,-1026.42,0.00013871,2]
[334874890,1723623043935,-500.0,0.00013871,2]
[334874892,1723623043944,-500.0,0.00013871,2]
[334874894,1723623043954,-500.0,0.00013871,2]
[334874896,1723623043963,-211.37163111,0.00013871,2]
[334874897,1723623043972,-500.0,0.00013871,2]
[334874899,1723623043981,-240.93669946,0.00013871,2]